fUSD/lending_fUSD_20260329
["ID","MTS","AMOUNT","RATE_DAILY","PERIOD"]
[419055804,1774817434288,-1006.778099,0.00010199,2]
[419055805,1774817434299,-1006.778099,0.00010199,2]
[419055806,1774817434309,-1006.778099,0.00010199,2]
[419055807,1774817434318,-1006.778099,0.00010199,2]
[419055808,1774817434327,-1006.778099,0.00010199,2]
[419055809,1774817434336,-1006.778099,0.00010199,2]
[419055810,1774817434346,-1006.778099,0.00010199,2]
[419055811,1774817434355,-1006.778099,0.00010199,2]
[419055812,1774817434365,-1006.778099,0.00010199,2]
[419055813,1774817434375,-1006.778099,0.00010199,2]
[419055814,1774817434386,-1006.778099,0.00010199,2]
[419055815,1774817434396,-1006.778099,0.00010199,2]
[419055816,1774817434406,-1006.778099,0.00010199,2]
[419055817,1774817434415,-1006.778099,0.00010199,2]
[419055818,1774817434425,-1006.778099,0.00010199,2]
[419055819,1774817434434,-1006.778099,0.00010199,2]
[419055820,1774817434442,-1006.778099,0.00010199,2]
[419055821,1774817434452,-1006.778099,0.00010199,2]
[419055822,1774817434461,-1006.778099,0.00010199,2]
[419055823,1774817434471,-988.47304266,0.00010199,2]
[419055824,1774817434480,-988.47304266,0.00010199,2]
[419055825,1774817434490,-988.47304266,0.00010199,2]
[419055826,1774817434499,-988.47304266,0.00010199,2]
[419055827,1774817434509,-988.47304266,0.00010199,2]
[419055828,1774817434519,-988.47304266,0.00010199,2]
[419055829,1774817434528,-988.47304266,0.00010199,2]
[419055830,1774817434537,-988.47304266,0.00010199,2]
[419055831,1774817434547,-988.47304266,0.00010199,2]
[419055832,1774817434556,-988.47304266,0.00010199,2]
[419055833,1774817434565,-988.47304262,0.00010199,2]
[419055834,1774817434574,-523515.47679347,0.000102,2]
[419055835,1774817434588,-89363.35132376,0.000102,2]
[419055836,1774817434599,-252999.14272232,0.000102,2]
[419055837,1774817434611,-234987.4965158,0.000102,2]
[419055838,1774817434622,-1205.65858203,0.000102,2]
[419055839,1774817434641,-15194.15285195,0.000102,2]
[419055840,1774817434660,-2758.6596117,0.000102,2]
[419055843,1774817437978,-1310.38674493,0.000102,2]
[419055844,1774817437990,-433.99124,0.000102,2]
[419055845,1774817438043,-2041.44350403,0.000102,2]
[419055846,1774817438102,-1376190.24011001,0.000102,2]
[419055847,1774817438111,-154.68,0.000102,2]
[419055848,1774817438121,-174.0,0.00010238,2]
[419055849,1774817438131,-1725.0,0.00010256,2]
[419055850,1774817438140,-1107.0,0.00010277,2]
[419055851,1774817438150,-150.99,0.00010288,2]
[419055852,1774817438159,-5058.46,0.00010288,2]
[419055853,1774817438169,-9999.99,0.00010288,2]
[419055854,1774817438178,-4141.48,0.00010297,2]
[419055855,1774817438187,-150.99,0.00010297,2]
[419055856,1774817438197,-200.51193558,0.00010297,2]
[419055857,1774817438206,-224.32485354,0.00010297,2]
[419055858,1774817438215,-1528.0,0.00010316,2]
[419055859,1774817438224,-165.0,0.00010316,2]
[419055860,1774817438234,-421.47,0.00010325,2]
[419055861,1774817438243,-240.0,0.00010336,2]
[419055862,1774817438252,-5390.506,0.00010377,2]
[419055863,1774817438271,-344.409,0.00010377,2]
[419055864,1774817438283,-820.0,0.00010389,2]
[419055865,1774817438293,-151.0,0.0001039,2]
[419055866,1774817438304,-151.0,0.0001039,2]
[419055867,1774817438313,-151.0,0.0001039,2]
[419055868,1774817438324,-151.0,0.0001039,2]
[419055869,1774817438333,-151.0,0.0001039,2]
[419055870,1774817438343,-151.0,0.0001039,2]
[419055871,1774817438353,-151.0,0.0001039,2]
[419055872,1774817438363,-151.0,0.0001039,2]
[419055873,1774817438373,-151.0,0.0001039,2]
[419055874,1774817438382,-151.0,0.0001039,2]
[419055875,1774817438392,-151.0,0.0001039,2]
[419055876,1774817438401,-151.0,0.0001039,2]
[419055877,1774817438411,-151.0,0.0001039,2]
[419055878,1774817438420,-1000.0,0.00010397,2]
[419055879,1774817438430,-19048.3611,0.00010397,2]
[419055880,1774817438440,-2500.0,0.00010397,2]
[419055881,1774817438450,-391.10444693,0.000104,2]
[419055882,1774817438459,-446.44502832,0.000104,2]
[419055883,1774817438468,-423.64008007,0.000104,2]
[419055884,1774817438477,-242.68586348,0.000104,2]
[419055885,1774817438487,-2108.46293893,0.000104,2]
[419055886,1774817438496,-2838.9,0.00010453,2]
[419055887,1774817438506,-500.0,0.00010473,2]
[419055889,1774817438515,-500.0,0.00010473,2]
[419055891,1774817438525,-500.0,0.00010473,2]
[419055893,1774817438535,-500.0,0.00010473,2]
[419055895,1774817438544,-500.0,0.00010473,2]
[419055897,1774817438554,-500.0,0.00010473,2]
[419055899,1774817438564,-500.0,0.00010473,2]
[419055901,1774817438574,-441.95,0.00010475,2]
[419055903,1774817438584,-200.0,0.0001049,2]
[419055905,1774817438594,-500.0,0.0001049,2]
[419055907,1774817438605,-500.0,0.0001049,2]
[419055909,1774817438614,-500.0,0.0001049,2]
[419055911,1774817438624,-500.0,0.0001049,2]
[419055913,1774817438634,-500.0,0.0001049,2]
[419055915,1774817438643,-500.0,0.0001049,2]
[419055917,1774817438653,-500.0,0.0001049,2]
[419055919,1774817438662,-500.0,0.0001049,2]
[419055921,1774817438671,-500.0,0.0001049,2]
[419055923,1774817438681,-500.0,0.0001049,2]
[419055925,1774817438691,-500.0,0.0001049,2]
[419055927,1774817438700,-500.0,0.0001049,2]
[419055929,1774817438710,-500.0,0.0001049,2]
[419055931,1774817438720,-500.0,0.0001049,2]
[419055933,1774817438730,-500.0,0.0001049,2]
[419055935,1774817438739,-500.0,0.0001049,2]
[419055937,1774817438749,-500.0,0.0001049,2]
[419055939,1774817438758,-500.0,0.0001049,2]
[419055941,1774817438768,-151.0,0.0001049,2]
[419055943,1774817438783,-500.0,0.0001049,2]
[419055945,1774817438794,-151.0,0.0001049,2]
[419055947,1774817438803,-500.0,0.0001049,2]
[419055949,1774817438813,-151.0,0.0001049,2]
[419055952,1774817438824,-500.0,0.0001049,2]
[419055954,1774817438834,-151.0,0.0001049,2]
[419055955,1774817438843,-500.0,0.0001049,2]
[419055956,1774817438854,-151.0,0.0001049,2]
[419055957,1774817438863,-151.0,0.0001049,2]
[419055958,1774817438873,-151.0,0.0001049,2]
[419055959,1774817438883,-151.0,0.0001049,2]
[419055960,1774817438893,-151.0,0.0001049,2]
[419055961,1774817438903,-151.0,0.0001049,2]
[419055962,1774817438913,-151.0,0.0001049,2]
[419055963,1774817438922,-151.0,0.0001049,2]
[419055964,1774817438932,-151.0,0.0001049,2]
[419055965,1774817438942,-151.0,0.0001049,2]
[419055966,1774817438952,-151.0,0.0001049,2]
[419055967,1774817438962,-151.0,0.0001049,2]
[419055968,1774817438972,-151.0,0.0001049,2]
[419055969,1774817438982,-151.0,0.0001049,2]
[419055970,1774817438992,-151.0,0.0001049,2]
[419055971,1774817439002,-151.0,0.0001049,2]
[419055972,1774817439013,-1500000.0,0.00010497,2]
[419055973,1774817439023,-1300.0,0.00010501,2]
[419055974,1774817439032,-152.50041022,0.00010556,2]
[419055988,1774817439547,-800.0,0.00010594,2]
[419055989,1774817439602,-150.0,0.00010595,2]
[419055990,1774817439612,-150.0,0.00010595,2]
[419055991,1774817439623,-154.00708367,0.000106,2]
[419055992,1774817439632,-2000.0,0.00010632,2]
[419055993,1774817439642,-1000.0,0.00010721,2]
[419055994,1774817439652,-1001.58195524,0.00010721,2]
[419055995,1774817439663,-1000.0,0.00010721,2]
[419055996,1774817439672,-835.72179077,0.00010721,2]
[419055997,1774817439682,-1000.0,0.00010721,2]
[419055998,1774817439691,-1000.0,0.00010721,2]
[419055999,1774817439701,-1000.0,0.00010721,2]
[419056000,1774817439711,-1000.0,0.00010721,2]
[419056001,1774817439720,-154.68,0.00010737,2]
[419056002,1774817439731,-478.56,0.00010738,2]
[419056003,1774817439740,-500.0,0.00010747,2]
[419056004,1774817439750,-787.37,0.00010788,2]
[419056005,1774817439760,-3400.0,0.000108,3]
[419056006,1774817439770,-827.5,0.00010803,2]
[419056007,1774817439779,-150.0,0.000109,2]
[419056008,1774817439789,-4300.0,0.000109,3]
[419056009,1774817439799,-9456.40878805,0.000109,2]
[419056010,1774817439808,-9456.40878801,0.00010929,2]
[419056011,1774817439818,-267.40193029,0.00010938,2]
[419056012,1774817439828,-500.0,0.00010959,2]
[419056013,1774817439838,-166.66,0.00010959,2]
[419056014,1774817439848,-150.0,0.00010959,2]
[419056015,1774817439858,-168.31887754,0.00010959,2]
[419056016,1774817439867,-2500.0,0.00010973,2]
[419056017,1774817439877,-2500.0,0.00010973,2]
[419056018,1774817439887,-2500.0,0.00010973,2]
[419056019,1774817439896,-2500.0,0.00010973,2]
[419056020,1774817439906,-2500.0,0.00010973,2]
[419056021,1774817439916,-600.0,0.00010973,2]
[419056022,1774817439926,-600.0,0.00010973,2]
[419056023,1774817439937,-600.0,0.00010973,2]
[419056024,1774817439947,-600.0,0.00010973,2]
[419056025,1774817439957,-600.0,0.00010973,2]
[419056026,1774817439968,-250.0,0.00010973,2]
[419056027,1774817439978,-193.0,0.00010973,2]
[419056028,1774817439987,-5000.0,0.00010973,2]
[419056029,1774817439997,-250.0,0.00010973,2]
[419056030,1774817440007,-1680.0,0.00010999,2]
[419056031,1774817440017,-3282.16832312,0.00011,2]
[419056032,1774817440029,-503.28384066,0.00011021,2]
[419056033,1774817440039,-631.94084691,0.00011021,2]
[419056034,1774817440049,-500.0,0.00011021,2]
[419056035,1774817440058,-500.0,0.00011021,2]
[419056036,1774817440068,-545.4146401,0.00011021,2]
[419056037,1774817440078,-500.0,0.00011021,2]
[419056038,1774817440087,-200.0,0.00011038,2]
[419056039,1774817440097,-1656.61982172,0.00011068,2]
[419056040,1774817440107,-166.66,0.00011068,2]
[419056041,1774817440116,-27906.65487179,0.00011099,2]
[419056042,1774817440126,-27906.65487176,0.00011099,2]
[419056043,1774817440135,-27906.65487176,0.00011099,2]
[419056044,1774817440144,-30342.24512377,0.00011099,2]
[419056045,1774817440154,-30342.24512371,0.00011099,2]
[419056046,1774817440164,-30342.24512371,0.00011099,2]
[419056047,1774817440175,-166.66,0.00011178,2]
[419056048,1774817440184,-726.28,0.00011196,2]
[419056049,1774817440194,-197.01734564,0.00011268,2]
[419056050,1774817440203,-200.06015101,0.00011268,2]
[419056051,1774817440214,-1500.0,0.00011268,2]
[419056052,1774817440224,-1500.0,0.00011268,2]
[419056053,1774817440235,-1500.0,0.00011268,2]
[419056054,1774817440244,-154.68,0.00011274,2]
[419056055,1774817440254,-166.66,0.00011288,2]
[419056056,1774817440264,-485.12,0.00011293,2]
[419056057,1774817440274,-482.66,0.00011331,2]
[419056058,1774817440284,-166.66,0.00011397,2]
[419056059,1774817440293,-166.66,0.00011507,2]
[419056060,1774817440303,-200.0,0.00011586,2]
[419056061,1774817440313,-27906.65487176,0.00011598,2]
[419056062,1774817440323,-30342.24512371,0.00011599,2]
[419056063,1774817440333,-189.38,0.00011703,2]
[419056064,1774817440343,-9456.40878801,0.00011758,2]
[419056065,1774817440352,-154.68,0.00011811,2]
[419056066,1774817440363,-2000.0,0.00011813,2]
[419056067,1774817440373,-2000.0,0.00011816,2]
[419056068,1774817440383,-2000.0,0.00011816,2]
[419056069,1774817440393,-287.80139,0.00011855,2]
[419056070,1774817440402,-4162.394676,0.00011855,2]
[419056071,1774817440412,-1477.029608,0.00011908,2]
[419056072,1774817440422,-200.0,0.00012,2]
[419056073,1774817440432,-1656.61982172,0.00012034,2]
[419056074,1774817440441,-27906.65487176,0.00012097,2]
[419056075,1774817440451,-30342.24512371,0.00012098,2]
[419056076,1774817440460,-2351.0,0.00012099,2]
[419056077,1774817440470,-200.0,0.00012134,2]
[419056078,1774817440480,-4262.6739,0.00012151,2]
[419056079,1774817440490,-1000.0,0.00012189,2]
[419056080,1774817440500,-196.8841,0.000122,2]
[419056081,1774817440509,-1000.0,0.00012215,2]
[419056082,1774817440518,-3365.780096,0.00012286,2]
[419056083,1774817440528,-154.68,0.00012348,2]
[419056084,1774817440538,-2500.0,0.00012364,2]
[419056085,1774817440547,-2500.0,0.00012364,2]
[419056086,1774817440557,-1000.0,0.00012399,2]
[419056087,1774817440566,-198.026185,0.00012411,2]
[419056088,1774817440576,-500.0,0.00012438,2]
[419056089,1774817440585,-1000.0,0.0001251,2]
[419056090,1774817440595,-1070.5842,0.00012555,2]
[419056091,1774817440605,-9456.40878801,0.00012586,2]
[419056092,1774817440614,-27906.65487176,0.00012595,2]
[419056093,1774817440624,-30342.24512371,0.00012597,2]
[419056094,1774817440634,-200.0,0.00012682,2]
[419056095,1774817440645,-1000.0,0.0001285,2]
[419056097,1774817440654,-181.314876,0.0001287,2]
[419056099,1774817440664,-154.68,0.00012885,2]
[419056101,1774817440674,-700.7886617,0.00012912,2]
[419056103,1774817440683,-3000.0,0.00012912,2]
[419056104,1774817440693,-1000.0,0.00012932,2]
[419056105,1774817440702,-1000.0,0.00012933,2]
[419056106,1774817440712,-554.77863007,0.0001294,2]
[419056107,1774817440721,-2000.0,0.00012994,2]
[419056108,1774817440730,-250.0,0.00013,2]
[419056109,1774817440740,-1656.61982172,0.00013001,2]
[419056110,1774817440749,-873.2138808,0.00013001,2]
[419056111,1774817440759,-1000.0,0.00013077,2]
[419056112,1774817440768,-27906.65487176,0.00013094,2]
[419056113,1774817440778,-30342.24512371,0.00013096,2]
[419056114,1774817440787,-151.0,0.00013129,2]
[419056115,1774817440797,-2108.46293891,0.0001315,2]
[419056116,1774817440806,-1000.0,0.00013154,2]
[419056117,1774817440816,-250.0,0.0001318,2]
[419056118,1774817440826,-200.0,0.0001323,2]
[419056119,1774817440836,-1000.0,0.00013277,2]
[419056120,1774817440846,-412.46,0.00013286,30]
[419056121,1774817440855,-1000.0,0.00013288,2]
[419056122,1774817440865,-3292.0,0.00013309,2]
[419056123,1774817440875,-1000.0,0.00013395,2]
[419056124,1774817440885,-1000.0,0.00013413,2]
[419056125,1774817440895,-9456.40878801,0.00013415,2]
[419056126,1774817440905,-154.68,0.00013422,2]
[419056127,1774817440915,-482.66,0.00013427,2]
[419056128,1774817440925,-1000.0,0.00013435,2]
[419056129,1774817440934,-2449.88014419,0.0001346,2]
[419056130,1774817440944,-1000.0,0.00013491,2]
[419056131,1774817440953,-1000.0,0.00013502,2]
[419056132,1774817440963,-1000.0,0.00013542,2]
[419056133,1774817440973,-1000.0,0.0001356,2]
[419056134,1774817440983,-27906.65487176,0.00013593,2]
[419056135,1774817440993,-30342.24512371,0.00013596,2]
[419056136,1774817441002,-258.4225,0.000136,2]
[419056137,1774817441011,-1000.0,0.00013632,2]
[419056138,1774817441021,-1000.0,0.0001364,2]
[419056139,1774817441032,-1000.0,0.00013689,2]
[419056140,1774817441042,-500.0,0.00013698,2]
[419056141,1774817441052,-272.52626615,0.00013698,2]
[419056142,1774817441062,-150.71545743,0.00013698,2]
[419056143,1774817441071,-500.0,0.00013698,2]
[419056144,1774817441080,-500.0,0.00013698,2]
[419056145,1774817441090,-500.0,0.00013698,2]
[419056146,1774817441100,-500.0,0.00013698,2]
[419056147,1774817441110,-500.0,0.00013698,2]
[419056148,1774817441120,-500.0,0.00013698,2]
[419056149,1774817441130,-500.0,0.00013698,2]
[419056150,1774817441139,-500.0,0.00013698,2]
[419056151,1774817441148,-500.0,0.00013698,2]
[419056152,1774817441158,-500.0,0.00013698,2]
[419056153,1774817441167,-500.0,0.00013698,2]
[419056154,1774817441177,-500.0,0.00013698,2]
[419056155,1774817441187,-500.0,0.00013698,2]
[419056156,1774817441197,-500.0,0.00013698,2]
[419056157,1774817441207,-500.0,0.00013698,2]
[419056158,1774817441216,-500.0,0.00013698,2]
[419056159,1774817441226,-500.0,0.00013698,2]
[419056160,1774817441235,-500.0,0.00013698,2]
[419056161,1774817441245,-500.0,0.00013698,2]
[419056162,1774817441255,-500.0,0.00013698,2]
[419056163,1774817441265,-500.0,0.00013698,2]
[419056164,1774817441274,-500.0,0.00013698,2]
[419056165,1774817441284,-500.0,0.00013698,2]
[419056166,1774817441294,-500.0,0.00013698,2]
[419056167,1774817441303,-500.0,0.00013698,2]
[419056168,1774817441312,-500.0,0.00013698,2]
[419056169,1774817441322,-500.0,0.00013698,2]
[419056170,1774817441332,-500.0,0.00013698,2]
[419056171,1774817441342,-500.0,0.00013698,2]
[419056172,1774817441352,-500.0,0.00013698,2]
[419056173,1774817441362,-454.01718216,0.00013698,2]
[419056174,1774817441372,-500.0,0.00013698,2]
[419056175,1774817441383,-500.0,0.00013698,2]
[419056176,1774817441393,-500.0,0.00013698,2]
[419056177,1774817441402,-551.92950635,0.00013698,2]
[419056178,1774817441412,-500.0,0.00013698,2]
[419056179,1774817441423,-500.0,0.00013698,2]
[419056180,1774817441433,-500.0,0.00013698,2]
[419056181,1774817441443,-500.0,0.00013698,2]
[419056182,1774817441454,-500.0,0.00013698,2]
[419056183,1774817441463,-500.0,0.00013698,2]
[419056184,1774817441474,-500.0,0.00013698,2]
[419056185,1774817441484,-500.0,0.00013698,2]
[419056186,1774817441494,-500.0,0.00013698,2]
[419056187,1774817441503,-500.0,0.00013698,2]
[419056188,1774817441513,-500.0,0.00013698,2]
[419056189,1774817441523,-500.0,0.00013698,2]
[419056190,1774817441532,-500.0,0.00013698,2]
[419056191,1774817441542,-500.0,0.00013698,2]
[419056192,1774817441551,-500.0,0.00013698,2]
[419056193,1774817441561,-500.0,0.00013698,2]
[419056194,1774817441571,-500.0,0.00013698,2]
[419056195,1774817441581,-500.0,0.00013698,2]
[419056196,1774817441591,-500.0,0.00013698,2]
[419056197,1774817441601,-500.0,0.00013698,2]
[419056198,1774817441610,-500.0,0.00013698,2]
[419056199,1774817441621,-500.0,0.00013698,2]
[419056200,1774817441630,-500.0,0.00013698,2]
[419056201,1774817441639,-500.0,0.00013698,2]
[419056202,1774817441649,-500.0,0.00013698,2]
[419056203,1774817441659,-500.0,0.00013698,2]
[419056204,1774817441668,-500.0,0.00013698,2]
[419056205,1774817441678,-500.0,0.00013698,2]
[419056206,1774817441688,-329.44503174,0.00013698,2]
[419056207,1774817441698,-500.0,0.00013698,2]
[419056208,1774817441707,-500.0,0.00013698,2]
[419056209,1774817441716,-500.0,0.00013698,2]
[419056210,1774817441726,-500.0,0.00013698,2]
[419056211,1774817441736,-500.0,0.00013698,2]
[419056212,1774817441746,-500.0,0.00013698,2]
[419056213,1774817441755,-500.0,0.00013698,2]
[419056214,1774817441765,-500.0,0.00013698,2]
[419056215,1774817441775,-500.0,0.00013698,2]
[419056216,1774817441785,-500.0,0.00013698,2]
[419056217,1774817441794,-150.0,0.00013699,2]
[419056218,1774817441804,-150.0,0.00013699,2]
[419056219,1774817441814,-158.44,0.00013699,2]
[419056220,1774817441823,-792.21,0.00013699,2]
[419056221,1774817441832,-500.0,0.00013699,2]
[419056222,1774817441843,-500.38478146,0.00013699,2]
[419056223,1774817441852,-500.98440072,0.00013699,2]
[419056224,1774817441862,-500.0,0.00013699,2]
[419056225,1774817441872,-500.0,0.00013699,2]
[419056226,1774817441881,-500.0,0.00013699,2]
[419056227,1774817441890,-500.0,0.00013699,2]
[419056228,1774817441899,-500.0,0.00013699,2]
[419056229,1774817441909,-500.0,0.00013699,2]
[419056230,1774817441918,-500.0,0.00013699,2]
[419056231,1774817441928,-500.0,0.00013699,2]
[419056232,1774817441939,-500.0,0.00013699,2]
[419056233,1774817441949,-500.0,0.00013699,2]
[419056234,1774817441959,-500.0,0.00013699,2]
[419056235,1774817441969,-188.97131412,0.00013699,2]
[419056236,1774817441979,-500.0,0.00013699,2]
[419056237,1774817441990,-500.0,0.00013699,2]
[419056238,1774817441999,-500.0,0.00013699,2]
[419056239,1774817442009,-500.0,0.00013699,2]
[419056240,1774817442019,-500.0,0.00013699,2]
[419056241,1774817442029,-500.0,0.00013699,2]
[419056242,1774817442039,-500.0,0.00013699,2]
[419056243,1774817442049,-500.0,0.00013699,2]
[419056244,1774817442059,-227.36412512,0.00013699,2]
[419056245,1774817442069,-500.0,0.00013699,2]
[419056246,1774817442078,-500.0,0.00013699,2]
[419056247,1774817442088,-286.26486585,0.00013699,2]
[419056248,1774817442099,-500.0,0.00013699,2]
[419056249,1774817442109,-500.0,0.00013699,2]
[419056250,1774817442119,-500.0,0.00013699,2]
[419056251,1774817442129,-500.0,0.00013699,2]
[419056252,1774817442139,-500.0,0.00013699,2]
[419056253,1774817442149,-500.0,0.00013699,2]
[419056254,1774817442159,-500.0,0.00013699,2]
[419056255,1774817442168,-342.71585944,0.00013699,2]
[419056256,1774817442178,-784.86,0.00013699,2]
[419056257,1774817442188,-880.69,0.00013699,2]
[419056258,1774817442197,-500.0,0.00013699,2]
[419056259,1774817442207,-441.89696112,0.00013699,2]
[419056260,1774817442216,-4762.68,0.000137,2]
[419056261,1774817442226,-5055.34,0.000137,2]
[419056262,1774817442235,-4373.32,0.000137,2]
[419056263,1774817442245,-1602.93,0.000137,2]
[419056264,1774817442254,-3286.49,0.000137,2]
[419056265,1774817442263,-21322.97,0.000137,2]
[419056266,1774817442273,-1000.0,0.00013717,2]
[419056267,1774817442283,-1000.0,0.00013733,2]
[419056268,1774817442293,-200.0,0.00013778,2]
[419056269,1774817442302,-621.0,0.00013781,2]
[419056270,1774817442312,-1000.0,0.00013796,2]
[419056271,1774817442322,-1000.0,0.00013807,2]
[419056272,1774817442332,-160.0,0.00013816,2]
[419056273,1774817442341,-1000.0,0.0001382,2]
[419056274,1774817442352,-1000.0,0.00013823,2]
[419056275,1774817442361,-1000.0,0.00013824,2]
[419056276,1774817442371,-1000.0,0.00013845,2]
[419056277,1774817442381,-1000.0,0.00013867,2]
[419056278,1774817442390,-2750.6,0.00013872,2]
[419056279,1774817442400,-2750.6,0.00013872,2]
[419056280,1774817442410,-2750.6,0.00013872,2]
[419056281,1774817442419,-2750.6,0.00013872,2]
[419056282,1774817442429,-2750.6,0.00013872,2]
[419056283,1774817442439,-2750.6,0.00013872,2]
[419056284,1774817442449,-2750.6,0.00013872,2]
[419056285,1774817442458,-2750.6,0.00013872,2]
[419056286,1774817442467,-2750.6,0.00013872,2]
[419056287,1774817442477,-160.0,0.00013936,2]
[419056288,1774817442486,-160.0,0.00013936,2]
[419056289,1774817442496,-959.8630956,0.00013937,2]
[419056290,1774817442506,-1000.0,0.00013953,2]
[419056291,1774817442516,-154.68,0.00013959,2]
[419056292,1774817442526,-2925.15918205,0.0001396,2]
[419056293,1774817442536,-1656.61982172,0.00013967,2]
[419056294,1774817442546,-150.0,0.00013973,2]
[419056295,1774817442555,-784.86,0.00013973,2]
[419056296,1774817442565,-880.69,0.00013973,2]
[419056297,1774817442578,-1000.0,0.00013985,2]
[419056298,1774817442588,-200.0,0.00014,2]
[419056299,1774817442598,-1000.0,0.0001401,2]
[419056300,1774817442608,-189.38,0.00014046,2]
[419056301,1774817442617,-1000.0,0.0001405,2]
[419056302,1774817442627,-27906.65487176,0.00014092,2]
[419056303,1774817442636,-30342.24512371,0.00014095,2]
[419056304,1774817442646,-824.92,0.00014097,30]
[419056305,1774817442655,-60000.0,0.00014115,2]
[419056306,1774817442665,-1000.0,0.00014121,2]
[419056307,1774817442675,-1000.0,0.00014154,2]
[419056308,1774817442684,-1000.0,0.00014172,2]
[419056309,1774817442694,-2000.0,0.00014176,2]
[419056310,1774817442704,-1000.0,0.0001422,2]
[419056311,1774817442713,-1000.0,0.00014222,2]
[419056312,1774817442723,-9456.40878801,0.00014243,2]
[419056313,1774817442732,-1000.0,0.00014247,2]
[419056314,1774817442741,-65.47684568,0.00014247,2]
[419056315,1774817442764,-386.36400107,0.00014247,2]
[419056316,1774817442801,-548.15915325,0.00014247,2]
[419056317,1774817442811,-70.51986565,0.00014247,2]
[419056318,1774817442830,-690.45,0.00014247,2]
[419056324,1774817444726,-239.03013435,0.00014247,2]
[419056325,1774817444736,-38.20417401,0.00014247,2]
[419056326,1774817444783,-511.96791911,0.00014247,2]
[419056327,1774817444792,-395.74377257,0.00014247,2]
[419056328,1774817444802,-1000.0,0.00014247,2]
[419056329,1774817444812,-1002.98896701,0.00014247,2]
[419056330,1774817444821,-1004.36577376,0.00014247,2]
[419056331,1774817444831,-1000.0,0.00014247,2]
[419056332,1774817444840,-1000.0,0.00014247,2]
[419056333,1774817444849,-1000.0,0.00014247,2]
[419056334,1774817444858,-1000.0,0.00014247,2]
[419056335,1774817444868,-1000.0,0.00014247,2]
[419056336,1774817444877,-640.4578624,0.00014247,2]
[419056337,1774817444886,-1000.0,0.00014247,2]
[419056338,1774817444896,-1000.0,0.00014247,2]
[419056339,1774817444905,-1000.0,0.00014247,2]
[419056340,1774817444914,-1000.0,0.00014247,2]
[419056341,1774817444924,-502.79991996,0.00014247,2]
[419056342,1774817444934,-1000.0,0.00014247,2]
[419056343,1774817444943,-1000.0,0.00014247,2]
[419056344,1774817444952,-910.58294734,0.00014247,2]
[419056345,1774817444961,-1000.0,0.00014247,2]
[419056346,1774817444971,-1000.0,0.00014247,2]
[419056347,1774817444982,-784.86,0.00014247,2]
[419056348,1774817444992,-880.69,0.00014247,2]
[419056349,1774817445002,-482.66,0.00014268,2]
[419056350,1774817445011,-200.0,0.00014326,2]
[419056351,1774817445022,-1000.0,0.00014334,2]
[419056352,1774817445031,-3217.38,0.00014338,2]
[419056353,1774817445041,-1000.0,0.00014346,2]
[419056354,1774817445050,-500.0,0.0001445,2]
[419056355,1774817445059,-1000.0,0.00014457,2]
[419056356,1774817445068,-217.8882415,0.00014495,2]
[419056357,1774817445079,-154.68,0.00014495,2]
[419056358,1774817445090,-150.0,0.000145,2]
[419056359,1774817445099,-2000.0,0.000145,2]
[419056360,1774817445109,-523.92140392,0.00014511,2]
[419056361,1774817445119,-784.86,0.00014521,2]